fUSD/lending_fUSD_20250227
["ID","MTS","AMOUNT","RATE_DAILY","PERIOD"]
[354695961,1740624657859,-524.81306565,0.00049589,120]
[354695962,1740624657868,-500.0,0.00049589,120]
[354695963,1740624657877,-500.0,0.00049589,120]
[354695964,1740624657886,-486.98602534,0.00049589,120]
[354695965,1740624657895,-151.0,0.00049589,120]
[354695966,1740624657904,-508.87984441,0.00049589,120]
[354695967,1740624657914,-151.0,0.00049589,120]
[354695968,1740624657924,-549.86189181,0.00049589,120]
[354695969,1740624657933,-500.0,0.00049589,120]
[354695970,1740624657942,-500.0,0.00049589,120]
[354695971,1740624657951,-151.0,0.00049589,120]
[354695972,1740624657961,-509.74710803,0.00049589,120]
[354695973,1740624657970,-511.79727061,0.00049589,120]
[354695974,1740624657980,-500.0,0.00049589,120]
[354695975,1740624657989,-509.77990009,0.00049589,120]
[354695976,1740624657998,-500.0,0.00049589,120]
[354695977,1740624658007,-500.0,0.00049589,120]
[354695978,1740624658016,-509.12350443,0.00049589,120]
[354695979,1740624658026,-500.0,0.00049589,120]
[354695980,1740624658035,-500.0,0.00049589,120]
[354695981,1740624658044,-509.80277627,0.00049589,120]
[354695982,1740624658054,-500.0,0.00049589,120]
[354695983,1740624658063,-523.44518864,0.00049589,120]
[354695984,1740624658072,-559.23525968,0.00049589,120]
[354695985,1740624658082,-631.07755782,0.00049589,120]
[354695986,1740624658091,-500.0,0.00049589,120]
[354695987,1740624658100,-500.0,0.00049589,120]
[354695988,1740624658109,-500.0,0.00049589,120]
[354695989,1740624658118,-500.0,0.00049589,120]
[354695990,1740624658128,-511.78831492,0.00049589,120]
[354695991,1740624658138,-516.15031211,0.00049589,120]
[354695992,1740624658148,-500.0,0.00049589,120]
[354695993,1740624658158,-500.0,0.00049589,120]
[354695994,1740624658167,-513.98440638,0.00049589,120]
[354695995,1740624658177,-500.0,0.00049589,120]
[354695996,1740624658187,-467.75456812,0.00049589,120]
[354695997,1740624658196,-537.11210297,0.00049589,120]
[354695998,1740624658205,-512.26242914,0.00049589,120]
[354695999,1740624658214,-500.0,0.00049589,120]
[354696000,1740624658223,-517.53526766,0.00049589,7]
[354696001,1740624658232,-500.0,0.00049589,120]
[354696002,1740624658241,-509.5770922,0.00049589,120]
[354696003,1740624658251,-836.09,0.00049589,120]
[354696004,1740624658260,-500.0,0.00049589,120]
[354696005,1740624658269,-509.62074809,0.00049589,120]
[354696006,1740624658279,-500.0,0.00049589,120]
[354696007,1740624658288,-510.81718612,0.00049589,120]
[354696008,1740624658297,-500.0,0.00049589,120]
[354696009,1740624658306,-500.0,0.00049589,120]
[354696010,1740624658316,-500.0,0.00049589,120]
[354696011,1740624658324,-526.74641794,0.00049589,120]
[354696012,1740624658333,-500.0,0.00049589,120]
[354696013,1740624658342,-511.17105823,0.00049589,120]
[354696014,1740624658351,-539.77926627,0.00049589,120]
[354696015,1740624658360,-154.102602,0.00049589,120]
[354696016,1740624658369,-509.08793492,0.00049589,120]
[354696017,1740624658379,-500.0,0.00049589,120]
[354696018,1740624658388,-500.0,0.00049589,120]
[354696019,1740624658402,-567.0971308,0.00049589,120]
[354696020,1740624658411,-540.85536454,0.00049589,120]
[354696021,1740624658420,-500.0,0.00049589,120]
[354696022,1740624658429,-510.84493176,0.00049589,120]
[354696023,1740624658439,-542.62363997,0.00049589,120]
[354696024,1740624658448,-500.0,0.00049589,120]
[354696025,1740624658457,-513.09275044,0.00049589,120]
[354696026,1740624658466,-500.0,0.00049589,120]
[354696027,1740624658475,-512.06053153,0.00049589,120]
[354696028,1740624658484,-500.0,0.00049589,120]
[354696029,1740624658493,-545.90457163,0.00049589,120]
[354696030,1740624658503,-500.0,0.00049589,120]
[354696031,1740624658512,-500.0,0.00049589,120]
[354696032,1740624658521,-510.84854281,0.00049589,120]
[354696033,1740624658531,-336.47636729,0.00049589,120]
[354696034,1740624658540,-514.80482556,0.00049589,120]
[354696035,1740624658648,-624.39413216,0.00049589,120]
[354696036,1740624658658,-500.0,0.00049589,120]
[354696037,1740624658667,-510.38089461,0.00049589,120]
[354696038,1740624658676,-500.0,0.00049589,120]
[354696039,1740624658687,-564.68016622,0.00049589,120]
[354696040,1740624658697,-561.17427483,0.00049589,120]
[354696041,1740624658706,-500.0,0.00049589,120]
[354696042,1740624658715,-511.15960051,0.00049589,120]
[354696043,1740624658724,-508.80774156,0.00049589,120]
[354696044,1740624658734,-500.0,0.00049589,120]
[354696045,1740624658743,-500.0,0.00049589,120]
[354696046,1740624658753,-565.14778666,0.00049589,120]
[354696047,1740624658762,-595.94091184,0.00049589,120]
[354696048,1740624658771,-530.6966221,0.00049589,120]
[354696049,1740624658780,-530.70177086,0.00049589,120]
[354696050,1740624658789,-577.38409354,0.00049589,120]
[354696051,1740624658798,-218.93353092,0.00049589,120]
[354696052,1740624658807,-510.45601095,0.00049589,120]
[354696053,1740624658816,-509.92767748,0.00049589,120]
[354696054,1740624658825,-555.16826531,0.00049589,120]
[354696055,1740624658835,-615.19735852,0.00049589,120]
[354696056,1740624658844,-634.64368669,0.00049589,120]
[354696057,1740624658852,-500.0,0.00049589,120]
[354696058,1740624658861,-529.53654778,0.00049589,120]
[354696059,1740624658870,-500.0,0.00049589,120]
[354696060,1740624658879,-573.86677161,0.00049589,120]
[354696061,1740624658888,-500.0,0.00049589,120]
[354696062,1740624658897,-500.0,0.00049589,120]
[354696063,1740624658906,-510.31202785,0.00049589,120]
[354696064,1740624658915,-509.43858827,0.00049589,120]
[354696065,1740624658925,-500.0,0.00049589,120]
[354696066,1740624658934,-500.0,0.00049589,120]
[354696067,1740624658944,-437.73213592,0.00049589,120]
[354696068,1740624658953,-511.42711987,0.00049589,120]
[354696069,1740624658963,-500.0,0.00049589,120]
[354696070,1740624658972,-505.65885932,0.00049589,120]
[354696071,1740624658981,-500.0,0.00049589,120]
[354696072,1740624658990,-500.0,0.00049589,120]
[354696073,1740624658999,-569.81569803,0.00049589,120]
[354696074,1740624659008,-500.0,0.00049589,120]
[354696075,1740624659017,-525.54020326,0.00049589,120]
[354696076,1740624659026,-151.0,0.00049589,120]
[354696077,1740624659035,-500.0,0.00049589,120]
[354696078,1740624659044,-461.91632672,0.00049589,120]
[354696079,1740624659053,-511.86090862,0.00049589,120]
[354696080,1740624659063,-575.11083469,0.00049589,120]
[354696081,1740624659071,-411.29568642,0.00049589,120]
[354696082,1740624659080,-515.59528255,0.00049589,120]
[354696083,1740624659089,-644.30201328,0.00049589,120]
[354696084,1740624659098,-500.0,0.00049589,120]
[354696085,1740624659107,-151.496643,0.00049589,120]
[354696086,1740624659116,-522.56219362,0.00049589,120]
[354696087,1740624659125,-500.0,0.00049589,120]
[354696088,1740624659134,-512.04369407,0.00049589,120]
[354696089,1740624659143,-533.70643417,0.00049589,120]
[354696090,1740624659151,-533.55457878,0.00049589,120]
[354696091,1740624659160,-500.0,0.00049589,120]
[354696092,1740624659169,-507.1191093,0.00049589,120]
[354696093,1740624659178,-546.66946089,0.00049589,120]
[354696094,1740624659188,-500.0,0.00049589,120]
[354696095,1740624659197,-507.68521622,0.00049589,120]
[354696096,1740624659206,-547.78861579,0.00049589,120]
[354696097,1740624659215,-566.0042269,0.00049589,120]
[354696098,1740624659224,-423.69633451,0.00049589,120]
[354696099,1740624659233,-505.60994588,0.00049589,120]
[354696100,1740624659242,-500.0,0.00049589,120]
[354696101,1740624659251,-592.24556167,0.00049589,120]
[354696102,1740624659260,-500.0,0.00049589,120]
[354696103,1740624659269,-520.62880961,0.00049589,120]
[354696104,1740624659279,-557.04063695,0.00049589,120]
[354696105,1740624659288,-500.0,0.00049589,120]
[354696106,1740624659297,-510.94840195,0.00049589,120]
[354696107,1740624659307,-520.68532587,0.00049589,120]
[354696108,1740624659316,-625.67384347,0.00049589,120]
[354696109,1740624659325,-510.17245825,0.00049589,120]
[354696110,1740624659334,-500.0,0.00049589,120]
[354696111,1740624659344,-509.81539068,0.00049589,120]
[354696112,1740624659353,-528.09730509,0.00049589,120]
[354696113,1740624659362,-577.2223323,0.00049589,120]
[354696114,1740624659371,-539.61125928,0.00049589,120]
[354696115,1740624659380,-500.0,0.00049589,120]
[354696116,1740624659389,-586.61000608,0.00049589,120]
[354696117,1740624659398,-551.37648168,0.00049589,120]
[354696118,1740624659408,-509.25333483,0.00049589,120]
[354696119,1740624659417,-500.0,0.00049589,120]
[354696120,1740624659425,-500.0,0.00049589,120]
[354696121,1740624659434,-500.0,0.00049589,120]
[354696122,1740624659443,-516.50085428,0.00049589,120]
[354696123,1740624659452,-523.09707611,0.00049589,120]
[354696124,1740624659461,-500.0,0.00049589,120]
[354696125,1740624659470,-509.57635497,0.00049589,120]
[354696126,1740624659479,-570.05866511,0.00049589,120]
[354696127,1740624659488,-183.23255888,0.00049589,120]
[354696128,1740624659499,-511.38403502,0.00049589,120]
[354696129,1740624659509,-626.00845649,0.00049589,120]
[354696130,1740624659520,-509.01666823,0.00049589,120]
[354696131,1740624659530,-542.79932027,0.00049589,120]
[354696132,1740624659539,-578.49092507,0.00049589,120]
[354696133,1740624659548,-187.14841307,0.00049589,120]
[354696134,1740624659557,-523.44622093,0.00049589,120]
[354696135,1740624659567,-556.16481308,0.00049589,120]
[354696136,1740624659576,-250.18714819,0.00049589,120]
[354696137,1740624659585,-585.46801064,0.00049589,120]
[354696138,1740624659594,-508.85461419,0.00049589,120]
[354696139,1740624659604,-561.69702596,0.00049589,120]
[354696140,1740624659616,-510.11606028,0.00049589,120]
[354696141,1740624659626,-577.96032983,0.00049589,120]
[354696142,1740624659636,-500.0,0.00049589,120]
[354696143,1740624659645,-468.15881732,0.00049589,120]
[354696144,1740624659655,-535.81338269,0.00049589,120]
[354696145,1740624659664,-555.97226202,0.00049589,120]
[354696146,1740624659674,-513.98288888,0.00049589,120]
[354696147,1740624659683,-500.0,0.00049589,120]
[354696148,1740624659694,-513.20685978,0.00049589,120]
[354696149,1740624659703,-509.50413268,0.00049589,120]
[354696150,1740624659713,-4100.95,0.00049589,120]
[354696151,1740624659722,-535.8640758,0.00049589,120]
[354696152,1740624659731,-583.47202228,0.00049589,120]
[354696153,1740624659740,-500.0,0.00049589,120]
[354696154,1740624659749,-515.27678398,0.00049589,120]
[354696155,1740624659758,-532.44189578,0.00049589,120]
[354696156,1740624659767,-500.0,0.00049589,120]
[354696157,1740624659778,-515.52602179,0.00049589,120]
[354696158,1740624659788,-551.81659762,0.00049589,120]
[354696159,1740624659797,-500.0,0.00049589,120]
[354696160,1740624659806,-557.58297313,0.00049589,120]
[354696161,1740624659815,-500.0,0.00049589,120]
[354696162,1740624659824,-526.55997381,0.00049589,120]
[354696163,1740624659834,-512.09955487,0.00049589,120]
[354696164,1740624659843,-169.67825871,0.00049589,120]
[354696165,1740624659852,-521.00690791,0.00049589,120]
[354696166,1740624659861,-451.22509381,0.00049589,120]
[354696167,1740624659870,-507.45493311,0.00049589,120]
[354696168,1740624659879,-460.18355625,0.00049589,120]
[354696169,1740624659888,-604.73297982,0.00049589,120]
[354696170,1740624659897,-500.0,0.00049589,120]
[354696171,1740624659906,-500.0,0.00049589,120]
[354696172,1740624659915,-517.19679045,0.00049589,120]
[354696173,1740624659924,-506.92832857,0.00049589,120]
[354696174,1740624659933,-509.72742914,0.00049589,120]
[354696175,1740624659942,-583.7287277,0.00049589,120]
[354696176,1740624659951,-164.9344752,0.00049589,120]
[354696177,1740624659960,-507.28001765,0.00049589,120]
[354696178,1740624659969,-524.0375846,0.00049589,120]
[354696179,1740624659978,-627.51993875,0.00049589,120]
[354696180,1740624659987,-535.46736115,0.00049589,30]
[354696181,1740624659996,-541.496359,0.00049589,120]
[354696182,1740624660005,-510.08706003,0.00049589,120]
[354696183,1740624660014,-512.12295866,0.00049589,120]
[354696184,1740624660023,-523.97973046,0.00049589,120]
[354696185,1740624660032,-500.0,0.00049589,120]
[354696186,1740624660042,-622.94457512,0.00049589,120]
[354696187,1740624660051,-500.0,0.00049589,120]
[354696188,1740624660061,-577.68048012,0.00049589,120]
[354696189,1740624660071,-541.66190505,0.00049589,120]
[354696190,1740624660080,-564.84070546,0.00049589,120]
[354696191,1740624660090,-613.47989456,0.00049589,120]
[354696192,1740624660099,-184.48286274,0.00049589,120]
[354696193,1740624660108,-569.12889503,0.00049589,120]
[354696194,1740624660117,-523.23773081,0.00049589,120]
[354696195,1740624660126,-507.70839801,0.00049589,120]
[354696196,1740624660135,-610.56133368,0.00049589,120]
[354696197,1740624660144,-151.0,0.00049589,120]
[354696198,1740624660153,-637.0226394,0.00049589,120]
[354696199,1740624660162,-512.55192609,0.00049589,120]
[354696200,1740624660171,-531.03459159,0.00049589,7]
[354696201,1740624660180,-587.53259621,0.00049589,120]
[354696202,1740624660189,-509.91889429,0.00049589,40]
[354696203,1740624660198,-579.93982808,0.00049589,120]
[354696204,1740624660208,-500.0,0.00049589,120]
[354696205,1740624660218,-151.0,0.00049589,120]
[354696206,1740624660227,-500.0,0.00049589,120]
[354696207,1740624660237,-527.69964022,0.00049589,120]
[354696208,1740624660246,-632.69995478,0.00049589,120]
[354696209,1740624660256,-544.27146768,0.00049589,120]
[354696210,1740624660265,-509.53590693,0.00049589,120]
[354696211,1740624660274,-500.0,0.00049589,120]
[354696212,1740624660284,-512.42769009,0.00049589,120]
[354696213,1740624660293,-567.17631152,0.00049589,120]
[354696214,1740624660302,-500.0,0.00049589,120]
[354696215,1740624660312,-509.61450803,0.00049589,120]
[354696216,1740624660320,-533.64987794,0.00049589,120]
[354696217,1740624660330,-283.9563123,0.00049589,120]
[354696218,1740624660339,-566.542663,0.00049589,120]
[354696219,1740624660349,-151.0,0.00049589,120]
[354696220,1740624660359,-542.26,0.00049589,120]
[354696221,1740624660369,-500.0,0.00049589,120]
[354696222,1740624660378,-151.0,0.00049589,120]
[354696223,1740624660388,-633.07101154,0.00049589,120]
[354696224,1740624660397,-155.627453,0.00049589,120]
[354696225,1740624660407,-509.2648287,0.00049589,120]
[354696226,1740624660416,-531.40312028,0.00049589,120]
[354696227,1740624660426,-508.62108146,0.00049589,120]
[354696228,1740624660437,-508.35459913,0.00049589,120]
[354696229,1740624660447,-165.385666,0.00049589,120]
[354696230,1740624660456,-617.74576798,0.00049589,120]
[354696231,1740624660466,-583.78780526,0.00049589,120]
[354696232,1740624660475,-507.91439791,0.00049589,120]
[354696233,1740624660484,-569.58860885,0.00049589,120]
[354696234,1740624660494,-165.385666,0.00049589,120]
[354696235,1740624660503,-500.0,0.00049589,120]
[354696236,1740624660512,-514.21223672,0.00049589,120]
[354696237,1740624660522,-514.35956801,0.00049589,120]
[354696238,1740624660533,-560.41518288,0.00049589,120]
[354696239,1740624660542,-500.0,0.00049589,120]
[354696240,1740624660552,-553.57543405,0.00049589,120]
[354696241,1740624660561,-545.31061463,0.00049589,120]
[354696242,1740624660571,-574.08590494,0.00049589,120]
[354696243,1740624660580,-617.28267164,0.00049589,120]
[354696244,1740624660589,-500.0,0.00049589,120]
[354696245,1740624660599,-506.59838098,0.00049589,120]
[354696246,1740624660610,-578.76925612,0.00049589,120]
[354696247,1740624660622,-534.18479724,0.00049589,120]
[354696248,1740624660631,-500.0,0.00049589,120]
[354696249,1740624660641,-500.0,0.00049589,120]
[354696250,1740624660653,-586.83341793,0.00049589,120]
[354696251,1740624660662,-500.0,0.00049589,120]
[354696252,1740624660672,-500.0,0.00049589,100]
[354696253,1740624660682,-532.93447875,0.00049589,120]
[354696254,1740624660692,-526.45935651,0.00049589,120]
[354696255,1740624660703,-507.73597961,0.00049589,120]
[354696256,1740624660712,-500.0,0.00049589,120]
[354696257,1740624660722,-500.0,0.00049589,120]
[354696258,1740624660732,-536.18074264,0.00049589,120]
[354696259,1740624660742,-500.0,0.00049589,120]
[354696260,1740624660751,-585.22159993,0.00049589,120]
[354696261,1740624660760,-500.0,0.00049589,120]
[354696262,1740624660770,-529.03681365,0.00049589,120]
[354696263,1740624660780,-151.0,0.00049589,120]
[354696264,1740624660790,-546.72106748,0.00049589,120]
[354696265,1740624660799,-233.79194413,0.00049599,30]
[354696266,1740624660809,-766.0,0.00049599,30]
[354696267,1740624660818,-150.0,0.00049603,30]
[354696268,1740624660827,-204.43682844,0.0004965,11]
[354696269,1740624660838,-233.79194413,0.00049653,30]
[354696270,1740624660849,-150.0,0.00049675,30]
[354696271,1740624660859,-150.0,0.00049682,30]
[354696272,1740624660870,-233.79194413,0.00049708,30]
[354696273,1740624660883,-1318.62,0.00049726,120]
[354696274,1740624660893,-150.0,0.00049748,30]
[354696275,1740624660995,-233.79194413,0.00049762,30]
[354696276,1740624661006,-150.0,0.00049799,30]
[354696277,1740624661015,-233.79194413,0.00049817,30]
[354696278,1740624661025,-150.0,0.00049821,30]
[354696279,1740624661035,-150.0,0.00049858,30]
[354696280,1740624661044,-1612.731499,0.00049863,120]
[354696281,1740624661053,-1131.341063,0.00049863,120]
[354696282,1740624661062,-151.0,0.00049863,120]
[354696283,1740624661070,-151.0,0.00049863,120]
[354696284,1740624661080,-153.384065,0.00049863,120]
[354696285,1740624661089,-151.0,0.00049863,120]
[354696286,1740624661098,-151.0,0.00049863,120]
[354696287,1740624661107,-289.68433444,0.00049863,120]
[354696288,1740624661116,-200.74300498,0.00049863,120]
[354696289,1740624661126,-259.67584925,0.00049863,120]
[354696290,1740624661135,-506.98079292,0.00049863,120]
[354696291,1740624661145,-648.99123041,0.00049863,120]
[354696292,1740624661154,-513.08200188,0.00049863,120]
[354696293,1740624661164,-516.76924813,0.00049863,120]
[354696294,1740624661173,-511.46575826,0.00049863,120]
[354696295,1740624661182,-508.29072801,0.00049863,120]
[354696296,1740624661191,-507.47144249,0.00049863,120]
[354696297,1740624661200,-506.17846301,0.00049863,120]
[354696298,1740624661210,-509.63931797,0.00049863,120]
[354696299,1740624661219,-500.0,0.00049863,120]
[354696300,1740624661228,-522.66694128,0.00049863,120]
[354696301,1740624661237,-512.44141419,0.00049863,120]
[354696302,1740624661246,-500.0,0.00049863,120]
[354696303,1740624661255,-647.03788216,0.00049863,120]
[354696304,1740624661265,-506.95576756,0.00049863,120]
[354696305,1740624661274,-500.0,0.00049863,120]
[354696306,1740624661283,-509.89174887,0.00049863,120]
[354696307,1740624661292,-546.44057937,0.00049863,120]
[354696308,1740624661302,-649.33956842,0.00049863,120]
[354696309,1740624661312,-540.24203669,0.00049863,120]
[354696310,1740624661322,-500.0,0.00049863,120]
[354696311,1740624661331,-500.0,0.00049863,120]
[354696312,1740624661342,-513.27886301,0.00049863,120]
[354696313,1740624661351,-500.0,0.00049863,120]
[354696314,1740624661360,-1318.62,0.00049863,120]
[354696315,1740624661369,-236.77858608,0.00049863,120]
[354696316,1740624661378,-511.18294949,0.00049863,120]
[354696317,1740624661389,-500.0,0.00049863,120]
[354696318,1740624661399,-522.36977499,0.00049863,120]
[354696319,1740624661409,-511.0211491,0.00049863,120]
[354696320,1740624661421,-302.56315039,0.00049863,120]
[354696321,1740624661431,-500.0,0.00049863,120]
[354696322,1740624661441,-236.97114756,0.00049863,120]
[354696323,1740624661451,-548.59919051,0.00049863,7]
[354696324,1740624661461,-157.96849174,0.00049863,120]
[354696325,1740624661472,-256.04420036,0.00049863,120]
[354696326,1740624661481,-500.0,0.00049863,120]
[354696327,1740624661490,-536.94803134,0.00049863,120]
[354696328,1740624661499,-500.0,0.00049863,120]
[354696329,1740624661508,-500.0,0.00049863,120]
[354696330,1740624661517,-524.30010265,0.00049863,120]
[354696331,1740624661526,-549.7477218,0.00049863,120]
[354696332,1740624661537,-505.74659415,0.00049863,120]
[354696333,1740624661547,-507.56050757,0.00049863,120]
[354696334,1740624661556,-536.8746375,0.00049863,120]
[354696335,1740624661567,-180.32229668,0.00049863,120]
[354696336,1740624661576,-516.47342156,0.00049863,120]
[354696337,1740624661585,-511.31670848,0.00049863,120]
[354696338,1740624661595,-534.64803035,0.00049863,120]
[354696339,1740624661606,-533.43555678,0.00049863,120]
[354696340,1740624661619,-510.06176552,0.00049863,120]
[354696341,1740624661629,-543.52434416,0.00049863,120]
[354696342,1740624661638,-526.41034362,0.00049863,120]
[354696343,1740624661647,-507.77656393,0.00049863,120]
[354696344,1740624661657,-521.16790322,0.00049863,120]
[354696345,1740624661667,-311.55241636,0.00049863,120]
[354696346,1740624661676,-508.67845949,0.00049863,120]
[354696347,1740624661685,-507.56190138,0.00049863,120]
[354696348,1740624661696,-517.64298189,0.00049863,120]
[354696349,1740624661706,-532.31578268,0.00049863,120]
[354696350,1740624661715,-500.0,0.00049863,120]
[354696351,1740624661725,-510.28104025,0.00049863,120]
[354696352,1740624661735,-508.84121513,0.00049863,120]
[354696353,1740624661744,-267.87997546,0.00049863,120]
[354696354,1740624661754,-500.0,0.00049863,120]
[354696355,1740624661763,-307.97884396,0.00049863,120]
[354696356,1740624661773,-460.59647976,0.00049863,120]
[354696357,1740624661784,-509.99782682,0.00049863,120]
[354696358,1740624661793,-518.11949749,0.00049863,120]
[354696359,1740624661803,-464.29695242,0.00049863,120]
[354696360,1740624661812,-500.0,0.00049863,120]
[354696361,1740624661821,-526.71956221,0.00049863,120]
[354696362,1740624661830,-612.81830751,0.00049863,120]
[354696363,1740624661841,-517.49882573,0.00049863,120]
[354696364,1740624661850,-533.23391821,0.00049863,120]
[354696365,1740624661859,-500.0,0.00049863,120]
[354696366,1740624661868,-510.41310588,0.00049863,120]
[354696367,1740624661877,-500.0,0.00049863,120]
[354696368,1740624661887,-500.0,0.00049863,120]
[354696369,1740624661896,-506.32851183,0.00049863,120]
[354696370,1740624661905,-151.708644,0.00049863,120]
[354696371,1740624661915,-500.0,0.00049863,120]
[354696372,1740624661924,-157.6533568,0.00049863,120]
[354696373,1740624661934,-500.0,0.00049863,120]
[354696374,1740624661943,-617.23911526,0.00049863,120]
[354696375,1740624661952,-155.815792,0.00049863,120]
[354696376,1740624661962,-646.54193937,0.00049863,120]
[354696377,1740624661971,-508.34694313,0.00049863,120]
[354696378,1740624661980,-516.71500481,0.00049863,120]
[354696379,1740624661989,-500.0,0.00049863,120]
[354696380,1740624662000,-542.03646605,0.00049863,120]
[354696381,1740624662009,-518.05271027,0.00049863,120]
[354696382,1740624662018,-510.64804466,0.00049863,120]
[354696383,1740624662027,-507.0085212,0.00049863,120]
[354696384,1740624662038,-151.0,0.00049863,120]
[354696385,1740624662047,-166.19489696,0.00049863,120]
[354696386,1740624662056,-338.90694508,0.00049863,120]
[354696387,1740624662066,-453.7522768,0.00049863,120]
[354696388,1740624662075,-399.88495086,0.00049863,120]
[354696389,1740624662086,-263.21003582,0.00049863,120]
[354696390,1740624662095,-507.20157669,0.00049863,120]
[354696391,1740624662104,-151.0,0.00049863,120]
[354696392,1740624662114,-500.0,0.00049863,120]
[354696393,1740624662123,-507.75869993,0.00049863,120]
[354696394,1740624662132,-507.21077489,0.00049863,120]
[354696395,1740624662141,-527.60454942,0.00049863,120]
[354696396,1740624662151,-500.0,0.00049863,120]
[354696397,1740624662160,-162.122637,0.00049863,120]
[354696398,1740624662169,-508.13825654,0.00049863,120]
[354696399,1740624662177,-500.0,0.00049863,120]
[354696400,1740624662187,-518.3535482,0.00049863,120]
[354696401,1740624662197,-507.29977314,0.00049863,120]
[354696402,1740624662206,-517.35116528,0.00049863,120]
[354696403,1740624662215,-500.0,0.00049863,120]
[354696404,1740624662227,-245.00634533,0.00049863,120]
[354696405,1740624662238,-220.53593267,0.00049863,120]
[354696406,1740624662248,-507.0331816,0.00049863,120]
[354696407,1740624662258,-500.0,0.00049863,120]
[354696408,1740624662268,-503.9087204,0.00049863,120]
[354696409,1740624662277,-506.17543702,0.00049863,120]
[354696410,1740624662288,-500.0,0.00049863,120]
[354696411,1740624662297,-507.05394704,0.00049863,120]
[354696412,1740624662307,-500.0,0.00049863,120]
[354696413,1740624662316,-500.0,0.00049863,120]
[354696414,1740624662326,-836.09,0.00049863,120]
[354696415,1740624662337,-507.35719619,0.00049863,120]
[354696416,1740624662347,-306.32702346,0.00049863,120]
[354696417,1740624662356,-506.04850502,0.00049863,120]
[354696418,1740624662366,-611.38182833,0.00049863,120]
[354696419,1740624662375,-530.25388404,0.00049863,120]
[354696420,1740624662384,-507.48129929,0.00049863,120]
[354696421,1740624662393,-647.48525152,0.00049863,120]
[354696422,1740624662402,-500.0,0.00049863,120]
[354696423,1740624662411,-503.85958833,0.00049863,120]
[354696424,1740624662420,-500.0,0.00049863,120]
[354696425,1740624662431,-500.0,0.00049863,120]
[354696426,1740624662439,-295.18882022,0.00049863,120]
[354696427,1740624662449,-506.5980421,0.00049863,120]
[354696428,1740624662458,-532.87624352,0.00049863,120]
[354696429,1740624662467,-295.66190022,0.00049863,120]
[354696430,1740624662477,-365.19504187,0.00049863,120]
[354696431,1740624662486,-503.84542233,0.00049863,120]
[354696432,1740624662495,-497.88267482,0.00049863,120]
[354696433,1740624662504,-360.22775962,0.00049863,120]
[354696434,1740624662513,-500.0,0.00049863,120]
[354696435,1740624662521,-512.39585494,0.00049863,120]
[354696436,1740624662531,-379.22913845,0.00049863,120]
[354696437,1740624662542,-508.67492176,0.00049863,120]
[354696438,1740624662552,-520.96302928,0.00049863,120]
[354696439,1740624662562,-506.05475464,0.00049863,120]
[354696440,1740624662572,-153.99762052,0.00049863,120]
[354696441,1740624662583,-511.65058997,0.00049863,120]
[354696442,1740624662594,-506.70206723,0.00049863,120]
[354696443,1740624662606,-304.2,0.00049863,120]
[354696444,1740624662620,-508.55668835,0.00049863,120]
[354696445,1740624662630,-363.71219433,0.00049863,120]
[354696446,1740624662643,-187.53011041,0.00049863,120]
[354696447,1740624662654,-500.0,0.00049863,120]
[354696448,1740624662664,-506.49720841,0.00049863,120]
[354696449,1740624662674,-509.18096477,0.00049863,120]
[354696450,1740624662684,-517.89660032,0.00049863,120]
[354696451,1740624662695,-506.68317583,0.00049863,120]
[354696452,1740624662705,-500.0,0.00049863,120]
[354696453,1740624662715,-342.07615663,0.00049863,120]
[354696454,1740624662724,-500.0,0.00049863,120]
[354696455,1740624662733,-615.8,0.00049863,120]
[354696456,1740624662743,-635.75181436,0.00049863,120]
[354696457,1740624662752,-4100.95,0.00049863,120]
[354696458,1740624662762,-508.14510759,0.00049863,120]
[354696459,1740624662771,-182.38061575,0.00049863,120]
[354696460,1740624662780,-158.94521367,0.00049863,120]